bitfinex-derivatives/quotes_SOLF0:USTF0_20250221
["timestamp","ask_amount","ask_price","bid_price","bid_amount"]
[1740153193341,38.25205764,173.31,173.27,0.0369984]
[1740153193538,0.04368962,173.31,173.27,0.0369984]
[1740153194144,0.04368962,173.31,173.3,5.7684]
[1740153195042,146.95783288,173.42,173.27,0.0369984]
[1740153195043,146.95783288,173.42,173.27,38.24536642]
[1740153195242,136.95723288,173.42,173.31,38.20836802]
[1740153195544,119.24763288,173.42,173.35,38.20836802]
[1740153195746,119.24763288,173.42,173.31,38.20836802]
[1740153195747,119.24763288,173.42,173.41,5.7648]
[1740153195944,54.78971015,173.42,173.41,5.7648]
[1740153196340,23.01723255,173.48,173.4,0.03865674]
[1740153196740,23.01723255,173.48,173.38,38.20836802]
[1740153196940,23.01723255,173.48,173.42,0.03978844]
[1740153199241,3.427,173.57,173.42,0.03978844]
[1740153199640,3.427,173.57,173.41,38.20836802]
[1740153199842,21.8,173.56,173.48,0.04315602]
[1740153200845,21.8,173.56,173.53,5.7608]
[1740153201045,21.8,173.56,173.48,0.04315602]
[1740153201046,21.8,173.56,173.49,48.92636802]
[1740153201242,21.8,173.56,173.49,16.4801]
[1740153201449,21.8,173.56,173.51,0.03912293]
[1740153202545,10.4038,173.66,173.51,0.03912293]
[1740153202742,193.0,173.69,173.51,0.03912293]
[1740153203048,196.6809,173.69,173.58,0.0367334]
[1740153203248,3.6809,173.69,173.58,0.0367334]
[1740153203447,5.7565,173.66,173.52,38.20836802]
[1740153203651,3.6809,173.69,173.62,0.03794829]
[1740153204151,38.20836802,173.72,173.52,38.20836802]
[1740153204351,548.61076161,174.89,173.64,0.04132897]
[1740153204352,10.7692,173.78,173.64,0.04132897]
[1740153204548,5.7541,173.74,173.67,5.7559]
[1740153204853,190.13639901,173.81,173.69,0.04112654]
[1740153205045,18.4,173.78,173.69,0.04112654]
[1740153205247,18.4,173.78,173.66,38.20836802]
[1740153205547,18.4,173.78,173.72,0.04104066]
[1740153206051,190.13639901,173.81,173.72,0.04104066]
[1740153206252,190.13639901,173.81,173.76,5.7532]
[1740153206452,11.3,173.89,173.73,38.20836802]
[1740153206646,11.3,173.89,173.73,45.34066802]
[1740153206852,45.28716802,173.88,173.79,0.04277358]
[1740153207154,38.20836802,173.81,173.79,7.358e-05]
[1740153207456,38.20836802,173.81,173.64,4.70260833]
[1740153207656,38.20836802,173.77,173.65,1.151742]
[1740153208058,3.755,173.8,173.67,38.20836802]
[1740153208349,38.20836802,173.85,173.67,38.20836802]
[1740153208557,4.959e-05,173.75,173.72,0.0381097]
[1740153208958,7.0788,173.88,173.72,3.5125]
[1740153209356,3.755,173.89,173.72,3.5125]
[1740153209554,38.20836802,173.88,173.73,3.4073]
[1740153210053,38.20836802,173.88,173.79,0.04429544]
[1740153210660,3.755,173.89,173.79,0.04429544]
[1740153211354,38.20836802,173.81,173.65,38.20836802]
[1740153211559,38.20836802,173.81,173.66,6.90787568]
[1740153211860,3.5067,173.8,173.66,1.15167568]
[1740153212259,7.1344,173.88,173.68,38.20836802]
[1740153212260,38.20836802,173.85,173.68,38.20836802]
[1740153212456,3.5067,173.87,173.69,1.15147676]
[1740153212652,0.04331319,173.78,173.75,0.03860808]
[1740153212955,0.04331319,173.78,173.69,1.15147676]
[1740153213162,5.7519,173.8,173.73,5.7541]
[1740153213461,0.04051012,173.78,173.75,0.04123143]
[1740153214260,0.04051012,173.78,173.76,5.7532]
[1740153214462,0.04051012,173.78,173.75,0.04123143]
[1740153217559,1.012e-05,173.78,173.77,5.7528]
[1740153220268,3.6731,173.94,173.82,5.7512]
[1740153220465,3.6731,173.94,173.77,38.20836802]
[1740153220666,3.6731,173.94,173.82,5.7509]
[1740153220860,3.6731,173.94,173.77,38.20836802]
[1740153221062,150.88,174.0,173.81,38.20836802]
[1740153221259,38.20836802,174.01,173.89,5.7488]
[1740153221458,38.20836802,174.01,173.89,0.0413501]
[1740153221861,38.20836802,174.01,173.86,10.6035]
[1740153222067,0.21207,173.96,173.93,0.03901691]
[1740153223766,0.21207,173.96,173.77,38.20836802]
[1740153223977,3.65937,173.96,173.78,3.5542]
[1740153224272,38.20836802,173.93,173.78,3.5542]
[1740153224467,49.34836802,173.93,173.78,3.5542]
[1740153224870,49.34836802,173.93,173.75,6.9245]
[1740153224871,38.20836802,173.89,173.75,6.9245]
[1740153225070,0.04176419,173.87,173.84,0.03967985]
[1740153225370,0.04176419,173.87,173.76,3.5542]
[1740153225567,0.04176419,173.87,173.84,0.04342928]
[1740153225772,3.4475,173.89,173.75,3.4507]
[1740153225977,38.20836802,173.86,173.75,3.4507]
[1740153226468,38.20836802,173.86,173.73,5.754]
[1740153226774,38.20836802,173.86,173.69,38.20836802]
[1740153226969,5.7525,173.78,173.65,38.20836802]
[1740153227168,0.04289371,173.81,173.76,0.04175735]
[1740153227369,5.7528,173.77,173.68,5.7555]
[1740153227572,0.04018445,173.8,173.65,38.20836802]
[1740153227770,49.34836802,173.82,173.77,8.865e-05]
[1740153227968,49.34836802,173.82,173.66,1.15167568]
[1740153228170,0.043994,173.74,173.66,1.15167568]
[1740153228371,0.043994,173.74,173.66,6.90787568]
[1740153228678,0.043994,173.74,173.66,1.15167568]
[1740153229176,18.27,173.73,173.68,0.03772002]
[1740153229772,38.20836802,173.71,173.57,10.768]
[1740153229970,38.20836802,173.71,173.57,3.73]
[1740153230173,49.34836802,173.71,173.57,3.73]
[1740153230376,49.34836802,173.71,173.58,5.7591]
[1740153230579,38.20836802,173.68,173.53,3.3934]
[1740153230772,9.3205,173.67,173.58,5.7591]
[1740153230974,38.20836802,173.68,173.59,0.04105677]
[1740153231180,0.04255648,173.62,173.59,0.04105677]
[1740153231370,0.04255648,173.62,173.61,5.7581]
[1740153231576,0.04255648,173.62,173.58,38.20836802]
[1740153231577,11.14,173.71,173.58,38.20836802]
[1740153231877,0.03747959,173.63,173.6,0.03851414]
[1740153232273,56.47836802,173.73,173.58,38.20836802]
[1740153232477,0.04020364,173.63,173.6,0.04094892]
[1740153232781,0.04020364,173.63,173.54,1.15247205]
[1740153232782,56.47836802,173.73,173.55,38.20836802]
[1740153232970,0.03767742,173.63,173.6,0.03901897]
[1740153233371,18.27,173.73,173.59,38.20836802]
[1740153233572,3.295e-05,173.63,173.62,38.20836802]
[1740153233776,18.27,173.73,173.62,38.20836802]
[1740153234283,18.27,173.73,173.63,3.4895]
[1740153234780,18.27,173.73,173.58,38.20836802]
[1740153234982,0.03652954,173.7,173.66,0.03847367]
[1740153235776,0.03652954,173.7,173.69,5.7555]
[1740153236982,18.27,173.73,173.72,5.7545]
[1740153237780,204.2,173.87,173.69,38.20836802]
[1740153237982,5.7509,173.83,173.69,38.20836802]
[1740153238281,0.03776587,173.74,173.71,0.03752815]
[1740153238587,0.03634264,173.74,173.69,38.20836802]
[1740153238885,0.03634264,173.74,173.71,0.04071083]
[1740153239082,0.03634264,173.74,173.73,5.7539]
[1740153240178,0.03634264,173.74,173.71,0.04071083]
[1740153241979,0.03634264,173.74,173.73,5.7542]
[1740153242180,0.03634264,173.74,173.71,0.04071083]
[1740153242380,0.03634264,173.74,173.73,5.7542]
[1740153242587,0.03634264,173.74,173.71,0.04071083]
[1740153242588,41.82956802,173.88,173.71,0.04071083]
[1740153242786,41.82956802,173.88,173.73,38.20836802]
[1740153243188,41.82956802,173.88,173.69,38.20836802]
[1740153243382,38.20836802,173.82,173.66,5.03254416]
[1740153243583,38.20836802,173.79,173.66,1.40264416]
[1740153243783,0.03967127,173.76,173.72,0.04073914]
[1740153244687,0.03967127,173.76,173.65,7.97862088]
[1740153244985,3.6715,173.76,173.65,7.97862088]
[1740153245189,41.87986802,173.76,173.64,31.91448354]
[1740153245890,41.87986802,173.76,173.68,0.04342061]
[1740153245891,0.03719001,173.72,173.68,0.04342061]
[1740153246190,0.03719001,173.72,173.64,31.91448354]
[1740153246888,5.7552,173.7,173.64,31.91448354]
[1740153247088,0.03719001,173.72,173.64,31.91448354]
[1740153247491,0.03719001,173.72,173.65,0.04063166]
[1740153247688,38.20836802,173.7,173.64,26.33778354]
[1740153247889,5.7568,173.65,173.64,15.03268354]
[1740153248287,5.7568,173.65,173.64,8.354e-05]
[1740153248489,5.7568,173.65,173.63,46.42945064]
[1740153248686,5.7578,173.62,173.61,95.32396336]
[1740153248882,193.03710345,173.66,173.62,0.0377792]
[1740153249083,5.7577,173.63,173.5,63.42897342]
[1740153249287,193.0,173.65,173.5,63.42897342]
[1740153249488,193.0,173.64,173.5,63.42897342]
[1740153249689,193.0,173.64,173.52,5.7609]
[1740153249889,193.0,173.63,173.5,63.42897342]
[1740153250089,193.0,173.62,173.5,63.42897342]
[1740153250295,0.04055338,173.58,173.55,0.03757781]
[1740153250997,193.0,173.57,173.55,0.03757781]
[1740153251187,198.7595,173.57,173.55,0.03757781]
[1740153251597,204.14,173.56,173.5,63.42897342]
[1740153251802,38.20836802,173.52,173.34,48.98586802]
[1740153252094,38.20836802,173.49,173.34,48.98586802]
[1740153252291,193.0,173.48,173.34,10.7775]
[1740153252486,78.0,173.55,173.34,7.152]
[1740153252487,38.20836802,173.46,173.34,7.152]
[1740153252797,5.7648,173.41,173.29,3.4889]
[1740153252992,5.7648,173.41,173.38,0.0386731]
[1740153253295,5.7648,173.41,173.31,5.7681]
[1740153253296,204.14,173.45,173.35,38.20836802]
[1740153253497,11.14,173.45,173.35,38.20836802]
[1740153253795,0.03887858,173.41,173.38,0.0411628]
[1740153254893,38.2472466,173.41,173.26,8.43733225]
[1740153255197,0.03887858,173.41,173.27,38.20836802]
[1740153255497,193.0,173.44,173.3,38.20836802]
[1740153256192,0.03635875,173.39,173.35,0.0430719]
[1740153258198,5.80185875,173.39,173.35,0.0430719]
[1740153258389,0.03635875,173.39,173.35,0.0430719]
[1740153258595,38.20836802,173.37,173.26,8.43733225]
[1740153258995,193.0,173.36,173.26,1.40583225]
[1740153259290,193.0,173.36,173.21,238.87760653]
[1740153259801,38.20836802,173.4,173.21,238.87760653]
[1740153260001,0.03731279,173.3,173.27,0.03736902]
[1740153260200,38.20836802,173.42,173.25,38.20836802]
[1740153260401,0.04299929,173.3,173.27,0.04389909]
[1740153260798,38.20836802,173.42,173.21,238.87760653]
[1740153260998,0.03773722,173.3,173.27,0.03719935]
[1740153261199,204.16,173.41,173.27,0.03719935]
[1740153261399,11.16,173.41,173.3,38.20836802]
[1740153261607,38.20836802,173.48,173.3,38.20836802]
[1740153261810,11.16,173.47,173.3,38.20836802]
[1740153262010,11.16,173.47,173.36,5.7663]
[1740153262213,38.20836802,173.45,173.3,38.20836802]
[1740153262409,11.16,173.44,173.3,38.20836802]
[1740153262710,0.04028095,173.43,173.4,0.03642336]
[1740153262911,11.16,173.44,173.3,38.20836802]
[1740153263111,0.04055844,173.43,173.4,0.04321677]
[1740153263313,0.04055844,173.43,173.31,3.7177]
[1740153263612,0.040377,173.43,173.4,0.0383404]
[1740153263809,0.040377,173.43,173.42,5.7645]
[1740153264016,193.0,173.52,173.39,38.20836802]
[1740153264210,0.04001338,173.44,173.42,5.7645]
[1740153264410,0.04001338,173.44,173.41,0.04320735]
[1740153264617,193.0,173.52,173.4,3.7177]
[1740153264816,193.0,173.52,173.46,5.763]
[1740153265017,193.0,173.52,173.41,0.04134923]
[1740153265211,0.03871065,173.51,173.41,0.04134923]
[1740153265417,0.03871065,173.51,173.4,3.7177]
[1740153265612,0.03871065,173.51,173.44,0.04121422]
[1740153265809,5.7582,173.61,173.53,5.7608]
[1740153266015,11.16,173.62,173.48,38.20836802]
[1740153266210,11.16,173.62,173.51,38.20836802]
[1740153266412,11.16,173.62,173.57,5.7594]
[1740153266614,11.16,173.62,173.52,3.6224]
[1740153266816,11.16,173.62,173.57,5.7593]
[1740153267216,11.16,173.62,173.52,3.6224]
[1740153267411,11.16,173.62,173.56,5.7597]
[1740153267616,0.04406582,173.61,173.58,0.04129995]
[1740153268017,0.04406582,173.61,173.58,5.80039995]
[1740153268418,0.04406582,173.61,173.6,5.7585]
[1740153268619,5.785,173.89,173.58,0.04129995]
[1740153268620,11.16,173.72,173.58,0.04129995]
[1740153269015,38.20836802,173.71,173.55,7.0801]
[1740153269217,38.20836802,173.65,173.55,7.0801]
[1740153269617,38.20836802,173.68,173.55,7.0801]
[1740153270018,5.79557936,173.62,173.58,0.03881838]
[1740153270213,0.03767936,173.62,173.58,0.03881838]
[1740153271527,38.24604738,173.62,173.58,0.03881838]
[1740153271721,5.7588,173.59,173.58,0.03881838]
[1740153271923,204.16,173.61,173.46,3.7556]
[1740153272121,5.7602,173.55,173.46,3.7556]
[1740153272423,231.20836802,173.59,173.44,7.2518]
[1740153273423,0.03808685,173.53,173.5,0.0396504]
[1740153273815,5.7612,173.52,173.5,0.0396504]
[1740153274222,0.03808685,173.53,173.5,0.0396504]
[1740153275024,5.7615,173.51,173.5,0.0396504]
[1740153275219,5.7615,173.51,173.5,5.04e-05]
[1740153275415,193.0,173.5,173.38,7.0765]
[1740153275616,193.0,173.49,173.38,7.0765]
[1740153276617,0.03983931,173.45,173.38,7.0765]
[1740153276824,0.03983931,173.45,173.42,0.03899542]
[1740153277626,0.03983931,173.45,173.31,10.6927]
[1740153278121,193.0,173.44,173.31,10.6927]
[1740153278321,231.20836802,173.44,173.31,10.6927]
[1740153278626,193.0,173.43,173.31,10.6927]
[1740153279016,0.03753593,173.39,173.36,0.03764953]
[1740153286132,11.16,173.46,173.36,0.03764953]
[1740153286133,11.16,173.46,173.36,23.55808164]
[1740153286329,193.0,173.49,173.36,23.55808164]
[1740153286729,193.0,173.49,173.37,38.19242146]
[1740153287032,193.0,173.49,173.34,38.19242146]
[1740153287333,0.04350309,173.45,173.41,0.04218605]
[1740153287735,38.23592455,173.45,173.41,0.04218605]
[1740153288032,5.7645,173.42,173.41,0.04218605]
[1740153288237,0.04350309,173.45,173.41,0.04218605]
[1740153291836,193.0,173.44,173.41,0.04218605]
[1740153292137,193.0,173.44,173.31,7.0632]
[1740153292633,193.0,173.44,173.27,38.19242146]
[1740153292838,193.0,173.43,173.27,45.32612146]
[1740153293236,0.03662383,173.37,173.33,0.0362685]
[1740153293635,11.16,173.39,173.32,5.7677]
[1740153293838,0.04265197,173.37,173.33,0.0419541]
[1740153294938,0.04265197,173.37,173.36,5.7664]
[1740153295138,0.04265197,173.37,173.33,0.0419541]
[1740153295438,0.04265197,173.37,173.36,5.7664]
[1740153295935,0.04265197,173.37,173.33,5.8092541]
[1740153296130,0.04265197,173.37,173.33,0.0419541]
[1740153296543,0.04265197,173.37,173.36,5.7664]
[1740153296737,0.04265197,173.37,173.33,0.0419541]
[1740153297639,0.04265197,173.37,173.34,5.7669]
[1740153297838,0.04265197,173.37,173.33,0.0419541]
[1740153298240,0.04265197,173.37,173.34,5.7671]
[1740153298439,0.04265197,173.37,173.33,0.0419541]
[1740153300337,38.19242146,173.46,173.33,0.0419541]
[1740153300642,38.19242146,173.4,173.27,7.1337]
[1740153300940,5.7665,173.36,173.28,5.7691]
[1740153301135,11.16,173.38,173.27,7.1337]
[1740153301341,0.04395546,173.34,173.3,0.04073209]
[1740153302538,5.7678,173.33,173.3,0.04073209]
[1740153302741,0.04395546,173.34,173.3,0.04073209]
[1740153303141,5.7681,173.32,173.3,0.04073209]
[1740153303340,0.04395546,173.34,173.3,0.04073209]
[1740153304042,38.23637692,173.34,173.18,38.19242146]
[1740153304242,231.23637692,173.34,173.22,6.8732]
[1740153304440,231.19242146,173.34,173.22,6.8732]
[1740153305141,198.7674,173.34,173.27,5.7693]
[1740153305442,0.04422515,173.3,173.26,0.0374936]
[1740153305836,11.16,173.38,173.22,6.8732]
[1740153306039,0.0393859,173.3,173.26,0.03837301]
[1740153306441,5.7681,173.32,173.23,5.7707]
[1740153306641,0.03729102,173.3,173.26,0.04270532]
[1740153308536,193.0,173.37,173.26,0.04270532]
[1740153308942,11.16,173.38,173.23,3.7663]
[1740153309142,23.56032535,173.36,173.23,3.7663]
[1740153309743,0.04163979,173.31,173.28,0.03708129]
[1740153310546,0.04163979,173.31,173.22,6.8732]
[1740153310747,23.56032535,173.28,173.16,3.7663]
[1740153310946,193.0,173.31,173.22,5.7708]
[1740153311146,216.56032535,173.32,173.17,3.7306]
[1740153311948,0.04369144,173.26,173.23,0.0398825]
[1740153312540,5.7704,173.24,173.23,0.0398825]
[1740153313045,5.7704,173.24,173.17,3.7306]
[1740153313046,23.56032535,173.24,173.17,3.7306]
[1740153313352,23.56032535,173.24,173.1,128.78725482]
[1740153313552,29.33092535,173.24,173.11,7.3186]
[1740153313851,5.7706,173.24,173.11,10.8305]
[1740153314050,193.0,173.29,173.11,10.8305]
[1740153314248,0.03690166,173.19,173.16,0.04107787]
[1740153314448,23.56032535,173.25,173.11,10.8305]
[1740153314649,0.03890873,173.19,173.16,0.04107674]
[1740153314854,216.56032535,173.29,173.16,0.04107674]
[1740153315052,23.56032535,173.29,173.12,23.56032535]
[1740153315251,5.7694,173.28,173.12,23.56032535]
[1740153315548,23.56032535,173.29,173.12,23.56032535]
[1740153315745,23.56032535,173.29,173.18,5.7723]
[1740153315952,0.04190863,173.22,173.19,0.03699282]
[1740153316153,23.56032535,173.25,173.19,0.03699282]
[1740153316448,0.03773114,173.22,173.19,0.03699282]
[1740153317852,0.03773114,173.22,173.19,5.80889282]
[1740153318053,0.03773114,173.22,173.19,0.03699282]
[1740153318849,193.0,173.28,173.19,0.03699282]
[1740153319057,29.32842535,173.32,173.19,0.03699282]
[1740153319254,23.56032535,173.32,173.14,23.56032535]
[1740153319754,193.0,173.35,173.11,10.8305]
[1740153319755,193.0,173.35,173.17,23.56032535]
[1740153320054,23.56032535,173.4,173.22,23.56032535]
[1740153320255,23.56032535,173.4,173.24,0.03705398]
[1740153320459,23.56032535,173.4,173.33,5.7671]
[1740153320752,29.32462535,173.43,173.26,23.56032535]
[1740153320952,23.56032535,173.4,173.23,30.94042535]
[1740153321155,23.56032535,173.34,173.23,7.3801]
[1740153321454,23.56032535,173.31,173.3,0.03720728]
[1740153321654,23.56032535,173.31,173.23,7.3801]
[1740153321857,23.56032535,173.28,173.23,7.3801]
[1740153322054,23.56032535,173.28,173.17,1.15493445]
[1740153322261,23.56032535,173.28,173.18,7.3801]
[1740153322757,23.56032535,173.34,173.18,7.3801]
[1740153322959,0.03665675,173.25,173.21,0.03643227]
[1740153323259,0.03665675,173.25,173.18,7.3801]
[1740153323260,23.56032535,173.31,173.18,7.3801]
[1740153323460,29.32852535,173.31,173.18,7.3801]
[1740153323661,23.56032535,173.31,173.18,7.3801]
[1740153323961,23.56032535,173.28,173.18,7.3801]
[1740153324156,11.16,173.35,173.18,7.3801]
[1740153324362,0.0432683,173.25,173.21,0.04016344]
[1740153324561,5.7678,173.32,173.21,0.04016344]
[1740153324765,23.56032535,173.34,173.25,5.77]
[1740153324958,11.16,173.35,173.18,30.94042535]
[1740153325157,23.56032535,173.35,173.18,7.3801]
[1740153325366,172.73273491,173.38,173.31,5.7681]
[1740153325564,172.73273491,173.38,173.21,23.56032535]
[1740153325766,0.04159775,173.36,173.33,0.03922454]
[1740153326060,149.17240956,173.38,173.24,23.56032535]
[1740153326361,0.04075458,173.36,173.33,0.04187984]
[1740153326562,0.04075458,173.36,173.24,23.56032535]
[1740153326864,149.17240956,173.38,173.33,0.03691491]
[1740153327058,149.17240956,173.38,173.24,23.56032535]
[1740153327059,0.03939593,173.32,173.24,23.56032535]
[1740153327259,0.03939593,173.32,173.21,23.56032535]
[1740153327560,0.03711971,173.27,173.26,0.0419589]
[1740153327962,23.56032535,173.34,173.24,5.7704]
[1740153328263,0.03959049,173.28,173.25,0.03805257]
[1740153328459,0.03959049,173.28,173.19,1.15480108]
[1740153328766,5.7724,173.19,173.02,69.54787977]
[1740153329060,23.56032535,173.18,173.02,69.54787977]
[1740153329260,23.56032535,173.14,173.02,69.54787977]
[1740153329767,0.04315356,173.1,173.07,0.04096996]
[1740153330661,49.49781599,173.18,173.07,0.04096996]
[1740153330863,38.33781599,173.15,173.07,0.04096996]
[1740153331066,44.11131599,173.15,173.04,3.4927]
[1740153331263,38.33781599,173.15,173.04,3.4927]
[1740153331459,38.33781599,173.15,173.06,5.7764]
[1740153331659,38.33781599,173.15,173.04,3.4927]
[1740153331865,0.04001621,173.12,173.09,0.04037679]
[1740153332569,38.33781599,173.18,173.09,0.04037679]
[1740153332765,44.10901599,173.22,173.09,0.04037679]
[1740153333066,44.10901599,173.22,173.04,41.83051599]
[1740153333259,38.33781599,173.22,173.04,41.83051599]
[1740153333758,44.10921599,173.22,173.04,42.98631811]
[1740153333965,0.03747559,173.15,173.11,0.03647642]
[1740153334263,38.33781599,173.22,173.15,5.7731]
[1740153334466,38.33781599,173.22,173.04,42.98631811]
[1740153334663,11.16,173.25,173.04,4.64850212]
[1740153334964,38.33781599,173.16,173.04,4.64850212]
[1740153335361,0.04185038,173.12,173.08,0.03986621]
[1740153337467,0.04185038,173.12,173.1,5.775]
[1740153337768,0.04185038,173.12,173.08,0.03986621]
[1740153337969,0.04185038,173.12,173.11,5.7748]
[1740153338760,0.04185038,173.12,173.09,5.7751]
[1740153338961,0.04185038,173.12,173.08,0.03986621]
[1740153339972,0.04185038,173.12,173.11,5.7748]
[1740153340566,0.04185038,173.12,173.1,5.7751]
[1740153340767,0.04185038,173.12,173.08,0.03986621]
[1740153342973,38.33781599,173.1,173.08,0.03986621]
[1740153343268,38.33781599,173.1,173.03,5.7772]
[1740153343773,38.33781599,173.1,173.04,5.777]
[1740153343973,38.33781599,173.1,172.92,3.4313]
[1740153343974,38.33781599,173.1,172.94,38.33781599]
[1740153344274,38.33781599,173.13,173.09,5.7753]
[1740153344470,38.33781599,173.18,173.0,38.37850832]
[1740153344665,38.33781599,173.15,173.01,3.3988]
[1740153344867,38.33781599,173.12,173.07,0.0441341]
[1740153345067,38.33781599,173.15,173.07,0.0441341]
[1740153345272,38.33781599,173.18,173.02,7.5013]
[1740153345674,0.1065,173.19,173.05,38.33781599]
[1740153345972,0.04331632,173.12,173.11,5.7748]
[1740153346170,0.04331632,173.12,173.08,0.03979068]
[1740153346472,0.0383492,173.12,173.08,0.04146617]
[1740153349275,0.0383492,173.12,173.11,5.7748]
[1740153349676,0.0383492,173.12,173.08,0.04146617]
[1740153349872,0.0383492,173.12,173.11,5.7748]
[1740153350573,38.33781599,173.24,173.08,0.04146617]
[1740153350770,23.57632822,173.22,173.08,0.04146617]
[1740153350967,23.57632822,173.22,173.04,23.57632822]
[1740153351674,0.03857869,173.15,173.14,5.7737]
[1740153351978,5.7719,173.2,173.04,23.57632822]
[1740153352277,0.03859867,173.16,173.15,5.7734]
[1740153352667,0.04021476,173.17,173.15,5.7734]
[1740153353176,0.04021476,173.17,173.14,0.04393815]
[1740153353565,0.04021476,173.17,173.02,7.5013]
[1740153353566,23.57632822,173.16,173.02,7.5013]
[1740153353970,29.34962822,173.16,173.02,7.5013]
[1740153354271,23.57632822,173.16,173.12,5.7744]
[1740153354473,5.7725,173.18,173.02,7.5013]
[1740153354672,23.57632822,173.19,173.02,7.5013]
[1740153354979,0.04085448,173.12,173.08,0.03822204]
[1740153355172,0.04085448,173.12,173.1,5.775]
[1740153355477,0.0417896,173.13,173.09,0.04148035]
[1740153355979,0.04012244,173.13,173.09,0.04129546]
[1740153356377,0.04012244,173.13,173.12,5.7744]
[1740153358775,34.71632822,173.22,173.09,0.04129546]
[1740153359077,34.71632822,173.22,173.04,23.57632822]
[1740153359777,0.03896476,173.15,173.11,0.04432612]
[1740153359980,0.03896476,173.15,173.04,23.57632822]
[1740153360275,23.57632822,173.22,173.11,0.04012182]
[1740153360677,0.03640952,173.18,173.15,0.04144989]
[1740153360876,0.03640952,173.18,173.04,35.13022822]
[1740153361076,23.57632822,173.19,173.15,0.04094136]
[1740153361281,0.04214153,173.13,173.1,5.7749]
[1740153361478,5.7739,173.14,173.02,7.5013]
[1740153361677,23.57632822,173.16,173.02,7.5013]
[1740153361878,23.57632822,173.2,173.02,7.5013]
[1740153362078,23.57632822,173.2,173.03,11.5549]
[1740153362376,23.57632822,173.2,173.14,5.7735]
[1740153362582,0.03803925,173.13,173.1,0.03920545]
[1740153362784,23.57632822,173.23,173.15,0.04304187]
[1740153362983,174.81632822,173.27,173.08,23.57632822]
[1740153363178,23.57632822,173.24,173.05,11.5536]
[1740153363483,23.57632822,173.18,173.02,32.23356394]
[1740153363879,23.57632822,173.22,173.06,23.57632822]
[1740153364076,23.57632822,173.25,173.08,0.03975509]
[1740153364282,23.57632822,173.25,173.06,23.57632822]
[1740153364283,0.04179142,173.16,173.06,23.57632822]
[1740153364580,23.57632822,173.25,173.15,0.04179034]
[1740153364783,23.57632822,173.25,173.1,3.6957]
[1740153365286,23.57632822,173.25,173.11,3.4985]
[1740153365477,5.7732,173.16,173.12,5.7743]
[1740153365878,0.04443971,173.16,173.12,0.04142917]
[1740153366079,0.04443971,173.16,173.13,5.7739]
[1740153366477,23.62076793,173.16,173.12,0.04142917]
[1740153366679,23.57632822,173.13,173.04,6.9004]
[1740153366880,23.57632822,173.1,173.02,4.88253572]
[1740153367085,5.7755,173.09,173.03,5.7772]
[1740153367277,23.57632822,173.1,173.02,4.88253572]
[1740153367876,23.57632822,173.07,173.02,1.15593572]
[1740153368179,23.57632822,173.07,173.04,0.0419707]
[1740153368383,23.57632822,173.07,173.02,0.83043572]
[1740153368586,23.57632822,173.03,172.95,24.0574483]
[1740153368790,0.04169483,173.08,172.94,3.6324]
[1740153369084,23.70502822,173.15,172.97,23.57632822]
[1740153369280,23.70502822,173.15,172.98,3.5041]
[1740153369482,23.57632822,173.15,172.98,3.5041]
[1740153369783,4.501e-05,173.08,173.04,0.03724249]
[1740153369992,4.501e-05,173.08,173.07,5.7761]
[1740153370282,149.17240956,173.23,173.06,23.57632822]
[1740153370483,149.17240956,173.23,173.09,23.57632822]
[1740153370781,149.17240956,173.23,173.07,3.5041]
[1740153370782,172.74873778,173.23,173.07,3.5041]
[1740153370988,23.57632822,173.17,173.14,0.03706356]
[1740153371282,23.57632822,173.17,173.06,1.15566855]
[1740153371483,23.57632822,173.17,173.05,3.6324]
[1740153372384,0.04391356,173.13,173.09,0.04006287]
[1740153372585,23.57632822,173.11,172.97,3.5733]
[1740153372785,23.57632822,173.07,172.97,3.5733]
[1740153372983,23.57632822,173.07,172.91,7.1415]
[1740153373185,23.57632822,173.07,172.91,3.5959]
[1740153373382,23.57632822,173.09,172.92,7.1189]
[1740153373683,0.03804318,173.01,172.97,0.03880724]
[1740153374077,23.57632822,173.06,172.92,7.1189]
[1740153374387,0.03938643,173.01,172.97,0.03779248]
[1740153374683,23.57632822,173.07,172.92,7.1189]
[1740153374889,9.612e-05,173.01,172.97,0.04343667]
[1740153375186,23.57632822,173.16,172.99,23.57632822]
[1740153375686,149.17240956,173.18,173.02,23.57632822]
[1740153375886,149.17240956,173.18,173.03,7.4531]
[1740153376282,0.04335593,173.12,173.09,0.03804364]
[1740153377078,0.04335593,173.12,173.11,5.7748]
[1740153377478,5.593e-05,173.12,173.11,5.7748]